[Event "Titled Tuesday Blitz February 21 Late 2023"]
[White "Li, Hui"]
[Black "Santos Flores, Alberto"]
[WhiteFideId "15400310"]
[BlackFideId "3601234"]
[WhiteElo "1963"]
[BlackElo "2164"]
[Result "1/2-1/2"]
[Round "06"]
[TimeControl "180+2"]
[Date "2023.02.21"]
[WhiteClock "0:00:39"]
[BlackClock "0:00:30"]

1. e4 {[%clk 0:02:51]}  c5 {[%clk 0:02:58]} 2. Nf3 {[%clk 0:02:50]}  Nc6 {[%clk 0:02:57]} 3. d4 {[%clk 0:02:51]}  cxd4 {[%clk 0:02:58]} 4. Nxd4 {[%clk 0:02:52]}  g6 {[%clk 0:02:58]} 5. Nc3 {[%clk 0:02:52]}  Bg7 {[%clk 0:02:59]} 6. Be3 {[%clk 0:02:52]}  Nf6 {[%clk 0:02:59]} 7. Bc4 {[%clk 0:02:53]}  O-O {[%clk 0:02:59]} 8. Bb3 {[%clk 0:02:53]}  d6 {[%clk 0:02:59]} 9. f3 {[%clk 0:02:52]}  Bd7 {[%clk 0:02:59]} 10. Qd2 {[%clk 0:02:52]}  Rc8 {[%clk 0:02:59]} 11. O-O-O {[%clk 0:02:51]}  Ne5 {[%clk 0:03:00]} 12. Kb1 {[%clk 0:02:46]}  a5 {[%clk 0:03:00]} 13. a4 {[%clk 0:02:43]}  Nc4 {[%clk 0:02:59]} 14. Bxc4 {[%clk 0:02:43]}  Rxc4 {[%clk 0:03:00]} 15. b3 {[%clk 0:02:17]}  Rc8 {[%clk 0:02:59]} 16. g4 {[%clk 0:02:13]}  Be6 {[%clk 0:02:42]} 17. h4 {[%clk 0:02:02]}  d5 {[%clk 0:02:00]} 18. Nxe6 {[%clk 0:01:39]}  fxe6 {[%clk 0:02:01]} 19. exd5 {[%clk 0:01:39]}  Nxd5 {[%clk 0:01:55]} 20. Nxd5 {[%clk 0:01:38]}  exd5 {[%clk 0:01:55]} 21. Qxd5+ {[%clk 0:01:32]}  Qxd5 {[%clk 0:01:55]} 22. Rxd5 {[%clk 0:01:33]}  Rxf3 {[%clk 0:01:55]} 23. Bd4 {[%clk 0:01:28]}  Bxd4 {[%clk 0:01:28]} 24. Rxd4 {[%clk 0:01:28]}  Rf2 {[%clk 0:01:29]} 25. Rc1 {[%clk 0:01:22]}  Kf7 {[%clk 0:01:22]} 26. Rd7 {[%clk 0:01:21]}  b6 {[%clk 0:01:22]} 27. Re1 {[%clk 0:01:18]}  Rcxc2 {[%clk 0:01:09]} 28. Rexe7+ {[%clk 0:01:17]}  Kf6 {[%clk 0:01:09]} 29. Rf7+ {[%clk 0:01:11]}  Ke6 {[%clk 0:01:08]} 30. Rxf2 {[%clk 0:01:05]}  Rxf2 {[%clk 0:01:08]} 31. Rxh7 {[%clk 0:01:05]}  Rf4 {[%clk 0:01:06]} 32. h5 {[%clk 0:00:56]}  Rxg4 {[%clk 0:01:04]} 33. hxg6 {[%clk 0:00:56]}  Rxg6 {[%clk 0:01:04]} 34. Kc2 {[%clk 0:00:55]}  Kd5 {[%clk 0:01:02]} 35. Rb7 {[%clk 0:00:53]}  Kc5 {[%clk 0:01:00]} 36. Rc7+ {[%clk 0:00:53]}  Kd6 {[%clk 0:00:58]} 37. Rb7 {[%clk 0:00:53]}  Kc6 {[%clk 0:00:58]} 38. Rb8 {[%clk 0:00:53]}  Rg2+ {[%clk 0:00:55]} 39. Kc3 {[%clk 0:00:53]}  Rg3+ {[%clk 0:00:55]} 40. Kc2 {[%clk 0:00:53]}  Rg2+ {[%clk 0:00:55]} 41. Kc3 {[%clk 0:00:53]}  Rg3+ {[%clk 0:00:55]} 42. Kc2 {[%clk 0:00:53]}  Rg5 {[%clk 0:00:53]} 43. Kc3 {[%clk 0:00:52]}  Rc5+ {[%clk 0:00:52]} 44. Kb2 {[%clk 0:00:52]}  Kc7 {[%clk 0:00:50]} 45. Rh8 {[%clk 0:00:51]}  b5 {[%clk 0:00:50]} 46. axb5 {[%clk 0:00:51]}  Rxb5 {[%clk 0:00:51]} 47. Ka3 {[%clk 0:00:51]}  Rg5 {[%clk 0:00:49]} 48. Rh7+ {[%clk 0:00:50]}  Kb6 {[%clk 0:00:49]} 49. Rh8 {[%clk 0:00:50]}  Rg3 {[%clk 0:00:48]} 50. Rb8+ {[%clk 0:00:50]}  Ka7 {[%clk 0:00:48]} 51. Rb5 {[%clk 0:00:50]}  Ka6 {[%clk 0:00:48]} 52. Rb8 {[%clk 0:00:50]}  Rg1 {[%clk 0:00:45]} 53. Ka2 {[%clk 0:00:46]}  Rg4 {[%clk 0:00:40]} 54. Ka3 {[%clk 0:00:46]}  Rg5 {[%clk 0:00:39]} 55. b4 {[%clk 0:00:41]}  Rg3+ {[%clk 0:00:37]} 56. Ka4 {[%clk 0:00:41]}  Rg4 {[%clk 0:00:35]} 57. Ka3 {[%clk 0:00:39]}  axb4+ {[%clk 0:00:29]} 58. Rxb4 {[%clk 0:00:39]}  Rxb4 {[%clk 0:00:30]} 59. Kxb4 {[%clk 0:00:39]} 1/2-1/2


[Site "https://www.chess.com"]

[Event "Titled Tuesday Blitz February 21 Late 2023"]
[White "Coelho, Ramyres Santana"]
[Black "Grycel, Kamil"]
[WhiteFideId "2120690"]
[BlackFideId "1115499"]
[WhiteElo "1981"]
[BlackElo "2315"]
[Result "1-0"]
[Round "06"]
[TimeControl "180+2"]
[Date "2023.02.21"]
[WhiteClock "0:00:08"]
[BlackClock "0:00:02"]

1. e4 {[%clk 0:02:59]}  b6 {[%clk 0:02:57]} 2. d4 {[%clk 0:02:59]}  Bb7 {[%clk 0:02:57]} 3. Nc3 {[%clk 0:02:59]}  e6 {[%clk 0:02:57]} 4. f3 {[%clk 0:02:59]}  g6 {[%clk 0:02:49]} 5. Be3 {[%clk 0:02:59]}  Bg7 {[%clk 0:02:49]} 6. Qd2 {[%clk 0:03:00]}  h6 {[%clk 0:02:49]} 7. O-O-O {[%clk 0:03:00]}  d6 {[%clk 0:02:48]} 8. g4 {[%clk 0:03:00]}  Nd7 {[%clk 0:02:46]} 9. h4 {[%clk 0:03:00]}  Ne7 {[%clk 0:02:45]} 10. f4 {[%clk 0:02:58]}  a6 {[%clk 0:02:28]} 11. f5 {[%clk 0:02:57]}  gxf5 {[%clk 0:02:27]} 12. gxf5 {[%clk 0:02:58]}  exf5 {[%clk 0:02:27]} 13. Bc4 {[%clk 0:02:54]}  Nf6 {[%clk 0:02:19]} 14. Nge2 {[%clk 0:02:31]}  b5 {[%clk 0:02:08]} 15. Bb3 {[%clk 0:02:25]}  b4 {[%clk 0:02:03]} 16. Nd5 {[%clk 0:02:22]}  Nxe4 {[%clk 0:01:49]} 17. Qxb4 {[%clk 0:02:18]}  Bxd5 {[%clk 0:01:47]} 18. c4 {[%clk 0:02:09]}  Rb8 {[%clk 0:01:41]} 19. Qe1 {[%clk 0:01:54]}  Be6 {[%clk 0:01:24]} 20. Rg1 {[%clk 0:01:49]}  Bf6 {[%clk 0:01:22]} 21. d5 {[%clk 0:01:49]}  Bd7 {[%clk 0:01:22]} 22. Nd4 {[%clk 0:01:47]}  Ng6 {[%clk 0:01:19]} 23. h5 {[%clk 0:01:42]}  Ne5 {[%clk 0:01:12]} 24. Qf1 {[%clk 0:01:26]}  Qc8 {[%clk 0:00:57]} 25. Bc2 {[%clk 0:01:06]}  Ng4 {[%clk 0:00:48]} 26. Rxg4 {[%clk 0:01:03]}  fxg4 {[%clk 0:00:43]} 27. Bxe4 {[%clk 0:01:03]}  Be5 {[%clk 0:00:42]} 28. b3 {[%clk 0:00:54]}  Qd8 {[%clk 0:00:31]} 29. Nc6 {[%clk 0:00:50]}  Bxc6 {[%clk 0:00:31]} 30. dxc6 {[%clk 0:00:51]}  Qf6 {[%clk 0:00:31]} 31. Qd3 {[%clk 0:00:46]}  g3 {[%clk 0:00:27]} 32. Rf1 {[%clk 0:00:46]}  Qe7 {[%clk 0:00:27]} 33. Bd5 {[%clk 0:00:42]}  g2 {[%clk 0:00:20]} 34. Rxf7 {[%clk 0:00:38]}  Qxf7 {[%clk 0:00:18]} 35. Bxf7+ {[%clk 0:00:38]}  Kxf7 {[%clk 0:00:18]} 36. Qg6+ {[%clk 0:00:35]}  Ke7 {[%clk 0:00:18]} 37. Qxg2 {[%clk 0:00:30]}  Rhg8 {[%clk 0:00:18]} 38. Qh3 {[%clk 0:00:27]}  Kf6 {[%clk 0:00:08]} 39. Bxh6 {[%clk 0:00:25]}  Rg1+ {[%clk 0:00:06]} 40. Kc2 {[%clk 0:00:24]}  Rbg8 {[%clk 0:00:06]} 41. Qh4+ {[%clk 0:00:20]}  Kf5 {[%clk 0:00:07]} 42. Bd2 {[%clk 0:00:14]}  R8g2 {[%clk 0:00:07]} 43. Qe7 {[%clk 0:00:14]}  Rh2 {[%clk 0:00:07]} 44. Qf7+ {[%clk 0:00:13]}  Ke4 {[%clk 0:00:07]} 45. Qd5+ {[%clk 0:00:11]}  Kf5 {[%clk 0:00:07]} 46. Qf7+ {[%clk 0:00:11]}  Ke4 {[%clk 0:00:07]} 47. Qxc7 {[%clk 0:00:11]}  Rgg2 {[%clk 0:00:07]} 48. Qh7+ {[%clk 0:00:11]}  Kf3 {[%clk 0:00:06]} 49. Qd3+ {[%clk 0:00:11]}  Kg4 {[%clk 0:00:07]} 50. c7 {[%clk 0:00:11]}  Bf4 {[%clk 0:00:05]} 51. c8=Q+ {[%clk 0:00:08]}  Kxh5 {[%clk 0:00:04]} 52. Qh8+ {[%clk 0:00:07]}  Kg4 {[%clk 0:00:04]} 53. Qg7+ {[%clk 0:00:08]}  Kh4 {[%clk 0:00:03]} 54. Qdh7+ {[%clk 0:00:07]}  Bh6 {[%clk 0:00:02]} 55. Qhxh6# {[%clk 0:00:08]} 1-0


[Site "https://www.chess.com"]

[Event "Titled Tuesday Blitz February 21 Late 2023"]
[White "The_Sherman_Variation"]
[Black "Prieto Aranguren, Alain"]
[BlackFideId "2268906"]
[WhiteElo "2501"]
[BlackElo "2258"]
[Result "1-0"]
[Round "06"]
[TimeControl "180+2"]
[Date "2023.02.21"]
[WhiteClock "0:00:41"]
[BlackClock "0:01:02"]

1. d4 {[%clk 0:03:00]}  g6 {[%clk 0:02:55]} 2. Bf4 {[%clk 0:02:56]}  Bg7 {[%clk 0:02:55]} 3. Nc3 {[%clk 0:02:55]}  d5 {[%clk 0:02:47]} 4. h4 {[%clk 0:02:52]}  h5 {[%clk 0:02:46]} 5. e3 {[%clk 0:02:50]}  c6 {[%clk 0:02:46]} 6. Nf3 {[%clk 0:02:50]}  Nf6 {[%clk 0:02:42]} 7. Bd3 {[%clk 0:02:49]}  Bg4 {[%clk 0:02:39]} 8. Qd2 {[%clk 0:02:48]}  Nbd7 {[%clk 0:02:36]} 9. Ne5 {[%clk 0:02:46]}  Nxe5 {[%clk 0:02:34]} 10. Bxe5 {[%clk 0:02:44]}  O-O {[%clk 0:02:28]} 11. f3 {[%clk 0:02:39]}  Be6 {[%clk 0:02:27]} 12. O-O-O {[%clk 0:02:38]}  b5 {[%clk 0:02:26]} 13. Qf2 {[%clk 0:02:28]}  a5 {[%clk 0:02:24]} 14. g4 {[%clk 0:02:23]}  hxg4 {[%clk 0:02:23]} 15. h5 {[%clk 0:02:22]}  gxh5 {[%clk 0:02:22]} 16. Qh4 {[%clk 0:02:05]}  Re8 {[%clk 0:02:04]} 17. Rdg1 {[%clk 0:01:45]}  a4 {[%clk 0:02:03]} 18. Ne2 {[%clk 0:01:43]}  b4 {[%clk 0:01:55]} 19. Nf4 {[%clk 0:01:26]}  b3 {[%clk 0:01:55]} 20. a3 {[%clk 0:01:20]}  bxc2 {[%clk 0:01:12]} 21. Nxh5 {[%clk 0:00:46]}  Nxh5 {[%clk 0:01:04]} 22. Bxg7 {[%clk 0:00:42]}  Kxg7 {[%clk 0:01:02]} 23. Qg5+ {[%clk 0:00:41]} 1-0


[Site "https://www.chess.com"]

[Event "Titled Tuesday Blitz February 21 Late 2023"]
[White "Buganca, Luiz Henrique Da Silva"]
[Black "Rottenwohrer Suarez, Juan"]
[WhiteFideId "2182289"]
[BlackFideId "32068182"]
[WhiteElo "1920"]
[BlackElo "2265"]
[Result "1-0"]
[Round "06"]
[TimeControl "180+2"]
[Date "2023.02.21"]
[WhiteClock "0:00:49"]
[BlackClock "0:00:08"]

1. d4 {[%clk 0:03:00]}  Nf6 {[%clk 0:02:59]} 2. c4 {[%clk 0:02:32]}  g6 {[%clk 0:02:58]} 3. Nf3 {[%clk 0:02:32]}  Bg7 {[%clk 0:02:58]} 4. g3 {[%clk 0:02:32]}  b6 {[%clk 0:02:58]} 5. Bg2 {[%clk 0:02:30]}  Bb7 {[%clk 0:02:59]} 6. O-O {[%clk 0:02:30]}  O-O {[%clk 0:02:59]} 7. Nc3 {[%clk 0:02:31]}  Ne4 {[%clk 0:02:59]} 8. Qc2 {[%clk 0:02:30]}  Nxc3 {[%clk 0:02:58]} 9. Qxc3 {[%clk 0:02:31]}  c5 {[%clk 0:02:58]} 10. Rd1 {[%clk 0:02:26]}  cxd4 {[%clk 0:02:22]} 11. Nxd4 {[%clk 0:02:17]}  Bxg2 {[%clk 0:02:23]} 12. Kxg2 {[%clk 0:02:18]}  Qc7 {[%clk 0:02:24]} 13. Qd3 {[%clk 0:02:12]}  Rc8 {[%clk 0:02:12]} 14. Qf3 {[%clk 0:01:58]}  Nc6 {[%clk 0:02:11]} 15. Nb5 {[%clk 0:01:57]}  Qb7 {[%clk 0:02:05]} 16. Rb1 {[%clk 0:01:46]}  a6 {[%clk 0:02:05]} 17. Nc3 {[%clk 0:01:45]}  b5 {[%clk 0:02:05]} 18. cxb5 {[%clk 0:01:42]}  axb5 {[%clk 0:02:06]} 19. a3 {[%clk 0:01:38]}  Rab8 {[%clk 0:01:28]} 20. Bf4 {[%clk 0:01:33]}  d6 {[%clk 0:01:28]} 21. Nd5 {[%clk 0:01:29]}  Nd4 {[%clk 0:01:01]} 22. Qe4 {[%clk 0:01:09]}  e5 {[%clk 0:00:37]} 23. Rxd4 {[%clk 0:00:58]}  exd4 {[%clk 0:00:21]} 24. Ne7+ {[%clk 0:00:57]}  Kf8 {[%clk 0:00:11]} 25. Qxb7 {[%clk 0:00:54]}  Rxb7 {[%clk 0:00:09]} 26. Nxc8 {[%clk 0:00:53]}  Be5 {[%clk 0:00:09]} 27. Nxd6 {[%clk 0:00:51]}  Bxf4 {[%clk 0:00:07]} 28. Nxb7 {[%clk 0:00:49]}  b4 {[%clk 0:00:08]} 1-0


[Site "https://www.chess.com"]

[Event "Titled Tuesday Blitz February 21 Late 2023"]
[White "De Souza, Cristiano Gomes"]
[Black "Ezat, Mohamed"]
[WhiteFideId "2151758"]
[BlackFideId "10600906"]
[WhiteElo "2018"]
[BlackElo "2402"]
[Result "0-1"]
[Round "06"]
[TimeControl "180+2"]
[Date "2023.02.21"]
[WhiteClock "0:00:49"]
[BlackClock "0:01:28"]

1. d4 {[%clk 0:02:59]}  Nf6 {[%clk 0:03:00]} 2. c4 {[%clk 0:02:59]}  g6 {[%clk 0:03:00]} 3. Nf3 {[%clk 0:03:00]}  Bg7 {[%clk 0:03:00]} 4. Nc3 {[%clk 0:03:00]}  O-O {[%clk 0:03:01]} 5. e4 {[%clk 0:03:00]}  d6 {[%clk 0:03:01]} 6. Be2 {[%clk 0:03:00]}  Bg4 {[%clk 0:03:02]} 7. Be3 {[%clk 0:03:00]}  Nfd7 {[%clk 0:03:02]} 8. h3 {[%clk 0:02:59]}  Bxf3 {[%clk 0:03:01]} 9. Bxf3 {[%clk 0:03:00]}  c5 {[%clk 0:03:01]} 10. d5 {[%clk 0:03:00]}  a6 {[%clk 0:03:00]} 11. Rc1 {[%clk 0:02:59]}  b5 {[%clk 0:03:00]} 12. cxb5 {[%clk 0:02:59]}  axb5 {[%clk 0:03:00]} 13. a3 {[%clk 0:02:59]}  b4 {[%clk 0:02:56]} 14. axb4 {[%clk 0:02:53]}  cxb4 {[%clk 0:02:56]} 15. Nb5 {[%clk 0:02:48]}  Na6 {[%clk 0:02:54]} 16. Nd4 {[%clk 0:02:45]}  Nac5 {[%clk 0:02:54]} 17. O-O {[%clk 0:02:43]}  Ne5 {[%clk 0:02:53]} 18. Be2 {[%clk 0:02:41]}  Nxe4 {[%clk 0:02:50]} 19. f4 {[%clk 0:02:36]}  Nd7 {[%clk 0:02:50]} 20. Nc6 {[%clk 0:02:36]}  Qe8 {[%clk 0:02:48]} 21. Nxb4 {[%clk 0:02:34]}  Ng3 {[%clk 0:02:45]} 22. Rf2 {[%clk 0:02:30]}  Bxb2 {[%clk 0:02:43]} 23. Rc2 {[%clk 0:02:30]}  Nxe2+ {[%clk 0:02:42]} 24. Qxe2 {[%clk 0:02:29]}  Bg7 {[%clk 0:02:42]} 25. Nc6 {[%clk 0:02:29]}  Nf6 {[%clk 0:02:41]} 26. Qf3 {[%clk 0:02:22]}  Ra3 {[%clk 0:02:38]} 27. Rfd2 {[%clk 0:02:18]}  Qd7 {[%clk 0:02:33]} 28. g4 {[%clk 0:02:14]}  Re8 {[%clk 0:02:24]} 29. g5 {[%clk 0:02:11]}  Nh5 {[%clk 0:02:24]} 30. Kg2 {[%clk 0:02:04]}  h6 {[%clk 0:02:20]} 31. Qf2 {[%clk 0:01:59]}  Qf5 {[%clk 0:02:16]} 32. Rc4 {[%clk 0:01:52]}  Kh7 {[%clk 0:01:45]} 33. Nb4 {[%clk 0:01:19]}  Rb8 {[%clk 0:01:34]} 34. Nc2 {[%clk 0:01:17]}  Rd3 {[%clk 0:01:30]} 35. Rd1 {[%clk 0:00:49]}  Qxd5+ {[%clk 0:01:28]} 0-1


[Site "https://www.chess.com"]

[Event "Titled Tuesday Blitz February 21 Late 2023"]
[White "Womacka, Mathias"]
[Black "Matsuura, Frederico"]
[WhiteFideId "4611390"]
[BlackFideId "2107848"]
[WhiteElo "2396"]
[BlackElo "2244"]
[Result "1-0"]
[Round "06"]
[TimeControl "180+2"]
[Date "2023.02.21"]
[WhiteClock "0:01:23"]
[BlackClock "0:00:14"]

1. e4 {[%clk 0:03:00]}  e6 {[%clk 0:03:00]} 2. d4 {[%clk 0:03:00]}  d5 {[%clk 0:03:00]} 3. Nd2 {[%clk 0:03:00]}  Nf6 {[%clk 0:02:58]} 4. e5 {[%clk 0:02:59]}  Nfd7 {[%clk 0:02:58]} 5. Bd3 {[%clk 0:02:59]}  c5 {[%clk 0:02:58]} 6. c3 {[%clk 0:03:00]}  Nc6 {[%clk 0:02:59]} 7. Ne2 {[%clk 0:02:59]}  cxd4 {[%clk 0:02:55]} 8. cxd4 {[%clk 0:03:00]}  f6 {[%clk 0:02:55]} 9. exf6 {[%clk 0:02:59]}  Nxf6 {[%clk 0:02:56]} 10. Nf3 {[%clk 0:03:00]}  Bd6 {[%clk 0:02:56]} 11. O-O {[%clk 0:02:59]}  Qc7 {[%clk 0:02:55]} 12. Nc3 {[%clk 0:02:59]}  a6 {[%clk 0:02:55]} 13. Bd2 {[%clk 0:02:58]}  O-O {[%clk 0:02:49]} 14. Rc1 {[%clk 0:02:58]}  Kh8 {[%clk 0:02:02]} 15. h3 {[%clk 0:02:51]}  Bd7 {[%clk 0:01:50]} 16. Re1 {[%clk 0:02:50]}  Rae8 {[%clk 0:01:44]} 17. Na4 {[%clk 0:02:48]}  Bc8 {[%clk 0:01:40]} 18. a3 {[%clk 0:02:11]}  Qf7 {[%clk 0:01:29]} 19. Nb6 {[%clk 0:02:06]}  Nh5 {[%clk 0:01:12]} 20. Bxa6 {[%clk 0:01:54]}  Nxd4 {[%clk 0:00:58]} 21. Nxc8 {[%clk 0:01:40]}  Nxf3+ {[%clk 0:00:56]} 22. Qxf3 {[%clk 0:01:39]}  Qxf3 {[%clk 0:00:18]} 23. gxf3 {[%clk 0:01:40]}  Rxc8 {[%clk 0:00:18]} 24. Rxc8 {[%clk 0:01:38]}  Rxc8 {[%clk 0:00:18]} 25. Bxb7 {[%clk 0:01:38]}  Rb8 {[%clk 0:00:18]} 26. Rxe6 {[%clk 0:01:35]}  Bf4 {[%clk 0:00:18]} 27. Bc3 {[%clk 0:01:27]}  Kg8 {[%clk 0:00:15]} 28. Bxd5 {[%clk 0:01:26]}  Kf8 {[%clk 0:00:14]} 29. Bb4+ {[%clk 0:01:23]} 1-0


[Site "https://www.chess.com"]

[Event "Titled Tuesday Blitz February 21 Late 2023"]
[White "Novikov, Evgenij"]
[Black "Nunez V, Gustavo Eduardo"]
[WhiteFideId "4125380"]
[BlackFideId "4403690"]
[WhiteElo "2276"]
[BlackElo "2212"]
[Result "0-1"]
[Round "06"]
[TimeControl "180+2"]
[Date "2023.02.21"]
[WhiteClock "0:00:02"]
[BlackClock "0:00:21"]

1. d4 {[%clk 0:02:59]}  Nf6 {[%clk 0:02:59]} 2. c4 {[%clk 0:02:58]}  g6 {[%clk 0:02:59]} 3. Nc3 {[%clk 0:02:58]}  Bg7 {[%clk 0:03:00]} 4. e4 {[%clk 0:02:59]}  d6 {[%clk 0:03:01]} 5. Be2 {[%clk 0:02:59]}  O-O {[%clk 0:03:01]} 6. Nf3 {[%clk 0:02:59]}  e5 {[%clk 0:03:02]} 7. d5 {[%clk 0:03:00]}  Nbd7 {[%clk 0:03:01]} 8. O-O {[%clk 0:03:00]}  Nc5 {[%clk 0:03:01]} 9. Qc2 {[%clk 0:03:01]}  a5 {[%clk 0:03:00]} 10. Bg5 {[%clk 0:03:01]}  h6 {[%clk 0:02:59]} 11. Be3 {[%clk 0:03:01]}  b6 {[%clk 0:02:58]} 12. Ne1 {[%clk 0:02:59]}  Ng4 {[%clk 0:02:52]} 13. Bxg4 {[%clk 0:02:57]}  Bxg4 {[%clk 0:02:53]} 14. f3 {[%clk 0:02:55]}  Bd7 {[%clk 0:02:53]} 15. Nd3 {[%clk 0:02:56]}  f5 {[%clk 0:02:51]} 16. Nxc5 {[%clk 0:02:56]}  bxc5 {[%clk 0:02:52]} 17. Bf2 {[%clk 0:02:44]}  a4 {[%clk 0:02:42]} 18. Rfb1 {[%clk 0:02:36]}  Qg5 {[%clk 0:02:36]} 19. Qc1 {[%clk 0:02:33]}  Qh5 {[%clk 0:02:28]} 20. Qd2 {[%clk 0:02:26]}  fxe4 {[%clk 0:02:27]} 21. Nxe4 {[%clk 0:02:24]}  Qf5 {[%clk 0:02:22]} 22. Re1 {[%clk 0:02:22]}  h5 {[%clk 0:02:18]} 23. b4 {[%clk 0:02:08]}  axb3 {[%clk 0:02:17]} 24. axb3 {[%clk 0:02:09]}  Rxa1 {[%clk 0:02:16]} 25. Rxa1 {[%clk 0:02:09]}  Rb8 {[%clk 0:02:16]} 26. Rb1 {[%clk 0:02:06]}  g5 {[%clk 0:01:53]} 27. Qxg5 {[%clk 0:01:53]}  Qxg5 {[%clk 0:01:52]} 28. Nxg5 {[%clk 0:01:53]}  Ba4 {[%clk 0:01:52]} 29. Ne6 {[%clk 0:01:49]}  Rxb3 {[%clk 0:01:52]} 30. Rxb3 {[%clk 0:01:08]}  Bxb3 {[%clk 0:01:53]} 31. Nxg7 {[%clk 0:01:08]}  Kxg7 {[%clk 0:01:52]} 32. Bh4 {[%clk 0:01:09]}  Bxc4 {[%clk 0:01:46]} 33. Bd8 {[%clk 0:01:10]}  Kf7 {[%clk 0:01:43]} 34. Bxc7 {[%clk 0:00:57]}  Ke7 {[%clk 0:01:42]} 35. g4 {[%clk 0:00:56]}  Bxd5 {[%clk 0:01:31]} 36. Kf2 {[%clk 0:00:54]}  hxg4 {[%clk 0:01:15]} 37. fxg4 {[%clk 0:00:55]}  Kd7 {[%clk 0:01:12]} 38. Ba5 {[%clk 0:00:54]}  Be6 {[%clk 0:01:13]} 39. g5 {[%clk 0:00:47]}  Bf7 {[%clk 0:01:06]} 40. Kf3 {[%clk 0:00:43]}  Bh5+ {[%clk 0:01:05]} 41. Kg3 {[%clk 0:00:43]}  Ke6 {[%clk 0:01:05]} 42. Kh4 {[%clk 0:00:43]}  Bg6 {[%clk 0:01:05]} 43. Kg4 {[%clk 0:00:43]}  d5 {[%clk 0:00:58]} 44. h4 {[%clk 0:00:44]}  d4 {[%clk 0:00:53]} 45. h5 {[%clk 0:00:43]}  Bf5+ {[%clk 0:00:53]} 46. Kf3 {[%clk 0:00:44]}  c4 {[%clk 0:00:48]} 47. g6 {[%clk 0:00:40]}  Kf6 {[%clk 0:00:48]} 48. Bd8+ {[%clk 0:00:39]}  Ke6 {[%clk 0:00:48]} 49. g7 {[%clk 0:00:22]}  Bh7 {[%clk 0:00:48]} 50. h6 {[%clk 0:00:18]}  c3 {[%clk 0:00:41]} 51. Bg5 {[%clk 0:00:16]}  e4+ {[%clk 0:00:26]} 52. Ke2 {[%clk 0:00:16]}  Kd5 {[%clk 0:00:26]} 53. Bf6 {[%clk 0:00:11]}  Kc4 {[%clk 0:00:24]} 54. Be5 {[%clk 0:00:08]}  c2 {[%clk 0:00:18]} 55. Kd2 {[%clk 0:00:08]}  e3+ {[%clk 0:00:19]} 56. Kc1 {[%clk 0:00:08]}  d3 {[%clk 0:00:19]} 57. Bf4 {[%clk 0:00:06]}  d2+ {[%clk 0:00:20]} 58. Kb2 {[%clk 0:00:01]}  c1=Q+ {[%clk 0:00:20]} 59. Ka2 {[%clk 0:00:02]}  Qb1+ {[%clk 0:00:20]} 60. Ka3 {[%clk 0:00:02]}  Qb3# {[%clk 0:00:21]} 0-1


[Site "https://www.chess.com"]

[Event "Titled Tuesday Blitz February 21 Late 2023"]
[White "Veiga, Jose Francisco R P Neves"]
[Black "Uzcategui Rodriguez, Alejandro"]
[WhiteFideId "1930087"]
[BlackFideId "3903400"]
[WhiteElo "2406"]
[BlackElo "2255"]
[Result "1-0"]
[Round "06"]
[TimeControl "180+2"]
[Date "2023.02.21"]
[WhiteClock "0:00:08"]
[BlackClock "0:00:07"]

1. b3 {[%clk 0:03:00]}  Nf6 {[%clk 0:02:57]} 2. Bb2 {[%clk 0:03:01]}  e6 {[%clk 0:02:58]} 3. e3 {[%clk 0:03:01]}  d5 {[%clk 0:02:59]} 4. Nf3 {[%clk 0:03:00]}  c5 {[%clk 0:02:54]} 5. c4 {[%clk 0:02:59]}  Nc6 {[%clk 0:02:51]} 6. cxd5 {[%clk 0:02:59]}  Nxd5 {[%clk 0:02:50]} 7. Be2 {[%clk 0:02:56]}  Be7 {[%clk 0:02:47]} 8. O-O {[%clk 0:02:53]}  O-O {[%clk 0:02:45]} 9. d4 {[%clk 0:02:50]}  Bf6 {[%clk 0:02:44]} 10. Na3 {[%clk 0:02:31]}  b6 {[%clk 0:02:40]} 11. Nc4 {[%clk 0:02:25]}  cxd4 {[%clk 0:02:36]} 12. Nxd4 {[%clk 0:02:21]}  Nxd4 {[%clk 0:02:35]} 13. Bxd4 {[%clk 0:02:21]}  Bxd4 {[%clk 0:02:35]} 14. Qxd4 {[%clk 0:02:22]}  Bb7 {[%clk 0:02:35]} 15. Bf3 {[%clk 0:02:21]}  Qg5 {[%clk 0:02:07]} 16. h4 {[%clk 0:02:01]}  Qe7 {[%clk 0:01:58]} 17. Rac1 {[%clk 0:01:53]}  Rfd8 {[%clk 0:01:56]} 18. Qg4 {[%clk 0:01:39]}  Nf6 {[%clk 0:01:42]} 19. Qg3 {[%clk 0:01:39]}  Bxf3 {[%clk 0:01:41]} 20. Qxf3 {[%clk 0:01:40]}  Rac8 {[%clk 0:01:38]} 21. Rfd1 {[%clk 0:01:37]}  h6 {[%clk 0:01:36]} 22. g3 {[%clk 0:01:36]}  b5 {[%clk 0:01:22]} 23. Ne5 {[%clk 0:01:35]}  Rxd1+ {[%clk 0:01:18]} 24. Qxd1 {[%clk 0:01:32]}  Rd8 {[%clk 0:01:12]} 25. Qe2 {[%clk 0:01:28]}  Qd6 {[%clk 0:01:09]} 26. Qxb5 {[%clk 0:01:24]}  Qd2 {[%clk 0:01:09]} 27. Rc7 {[%clk 0:01:18]}  Qe1+ {[%clk 0:00:31]} 28. Qf1 {[%clk 0:01:08]}  Qa5 {[%clk 0:00:26]} 29. Nxf7 {[%clk 0:00:32]}  Qxc7 {[%clk 0:00:23]} 30. Nxd8 {[%clk 0:00:32]}  Qxd8 {[%clk 0:00:24]} 31. Qc4 {[%clk 0:00:32]}  Qd5 {[%clk 0:00:23]} 32. Qc8+ {[%clk 0:00:31]}  Kh7 {[%clk 0:00:23]} 33. Qc7 {[%clk 0:00:28]}  e5 {[%clk 0:00:16]} 34. Qxa7 {[%clk 0:00:23]}  Qf3 {[%clk 0:00:15]} 35. Qf7 {[%clk 0:00:19]}  e4 {[%clk 0:00:11]} 36. a4 {[%clk 0:00:17]}  Qd1+ {[%clk 0:00:05]} 37. Kg2 {[%clk 0:00:16]}  Qd5 {[%clk 0:00:06]} 38. Qxd5 {[%clk 0:00:12]}  Nxd5 {[%clk 0:00:07]} 39. Kf1 {[%clk 0:00:13]}  Kg6 {[%clk 0:00:07]} 40. Ke2 {[%clk 0:00:13]}  Nb4 {[%clk 0:00:07]} 41. f3 {[%clk 0:00:12]}  Kf5 {[%clk 0:00:08]} 42. g4+ {[%clk 0:00:12]}  Ke5 {[%clk 0:00:08]} 43. f4+ {[%clk 0:00:11]}  Kd5 {[%clk 0:00:08]} 44. Kd2 {[%clk 0:00:12]}  Nc6 {[%clk 0:00:07]} 45. Kc3 {[%clk 0:00:11]}  Kc5 {[%clk 0:00:08]} 46. h5 {[%clk 0:00:11]}  Nb4 {[%clk 0:00:07]} 47. g5 {[%clk 0:00:11]}  Nc6 {[%clk 0:00:06]} 48. a5 {[%clk 0:00:08]}  Kb5 {[%clk 0:00:05]} 49. a6 {[%clk 0:00:08]}  Kxa6 {[%clk 0:00:05]} 50. Kc4 {[%clk 0:00:09]}  Kb6 {[%clk 0:00:06]} 51. Kd5 {[%clk 0:00:09]}  Ne7+ {[%clk 0:00:06]} 52. Kxe4 {[%clk 0:00:09]}  Kc5 {[%clk 0:00:07]} 53. Ke5 {[%clk 0:00:09]}  Nc6+ {[%clk 0:00:06]} 54. Kf5 {[%clk 0:00:08]}  Kd5 {[%clk 0:00:07]} 55. Kg6 {[%clk 0:00:09]}  Ke4 {[%clk 0:00:07]} 56. Kxg7 {[%clk 0:00:08]}  Kxe3 {[%clk 0:00:06]} 57. gxh6 {[%clk 0:00:08]}  Kxf4 {[%clk 0:00:07]} 58. h7 {[%clk 0:00:08]} 1-0


[Site "https://www.chess.com"]